bitfinex/quotes_ETHUSD_20250415
["timestamp","ask_amount","ask_price","bid_price","bid_amount"]
[1744746448082,26.01737909,1603.2,1603.1,0.02]
[1744746448992,21.84602495,1603.2,1603.1,0.02]
[1744746449398,26.14973574,1603.2,1603.1,0.02]
[1744746449601,21.84602495,1603.2,1603.1,0.02]
[1744746450292,16.13602495,1603.2,1603.1,0.02]
[1744746450520,18.84702495,1603.2,1603.1,0.02]
[1744746450683,21.84702495,1603.2,1603.1,0.02]
[1744746451095,28.39502495,1603.2,1603.1,0.02]
[1744746452239,33.72567464,1603.2,1603.1,1e-08]
[1744746453017,33.17567464,1603.2,1603.1,1e-08]
[1744746453741,16.61296385,1603.2,1603.1,1e-08]
[1744746454047,22.30995722,1603.2,1603.1,1e-08]
[1744746454607,5.713,1603.2,1602.7,4.30371079]
[1744746454812,5.713,1603.2,1602.8,12.47778789]
[1744746454813,11.95057545,1603.2,1602.8,12.47778789]
[1744746455120,5.713,1603.5,1602.9,4.30371079]
[1744746455323,6.23820748,1603.1,1602.8,0.7846]
[1744746455834,6.23831727,1603.0,1602.8,0.7846]
[1744746455993,12.47647947,1603.1,1602.8,0.7846]
[1744746457737,6.23886049,1602.9,1602.5,7.03586859]
[1744746458032,6.23966693,1602.7,1602.3,16.28782599]
[1744746458236,6.23869237,1602.9,1602.3,7.04686466]
[1744746458440,6.23989936,1602.6,1602.3,7.04686466]
[1744746459001,12.479591,1602.7,1602.3,7.04686466]
[1744746459531,12.47918505,1602.7,1602.3,12.48176669]
[1744746460129,12.47918505,1602.7,1602.3,6.24086466]
[1744746460330,6.23987369,1602.6,1602.2,16.78629198]
[1744746460530,6.23987369,1602.6,1602.3,6.24102667]
[1744746461415,7.01078893,1602.5,1602.2,6.24140253]
[1744746461621,7.00988851,1602.7,1602.3,6.24066573]
[1744746461819,6.23988052,1602.6,1602.3,6.24066573]
[1744746462129,0.7704,1602.7,1602.1,11.35795083]
[1744746462335,13.24973453,1602.7,1602.3,12.4817547]
[1744746462630,6.23989588,1602.6,1602.3,6.24086999]
[1744746463146,6.23961579,1602.7,1602.4,6.24042407]
[1744746463305,12.47926629,1602.7,1602.4,6.24042407]
[1744746463501,54.8894155,1603.0,1602.5,0.7644]
[1744746463706,6.5378,1603.4,1602.9,4.30371079]
[1744746463936,0.8238,1603.6,1603.1,4.30371079]
[1744746464147,7.05989221,1603.6,1603.2,13.28119066]
[1744746464374,13.29608194,1603.6,1603.2,7.04383841]
[1744746464659,5.714,1603.7,1603.4,6.23654243]
[1744746464824,5.714,1603.7,1603.4,12.47316965]
[1744746465707,5.714,1603.7,1603.5,6.2363373]
[1744746466048,5.714,1603.7,1603.5,6.23623957]
[1744746466259,5.714,1603.7,1603.5,12.47243259]
[1744746466411,5.714,1603.7,1603.5,6.23619302]
[1744746467165,3.0,1604.1,1603.8,6.23503664]
[1744746467166,5.713,1604.1,1603.8,6.23503664]
[1744746467806,11.94702866,1604.1,1603.8,6.23503664]
[1744746468010,6.23486774,1603.9,1603.5,13.02248666]
[1744746468216,6.23587934,1603.7,1603.3,6.23707385]
[1744746468417,6.23672117,1603.5,1603.2,0.8278]
[1744746468622,12.47341047,1603.5,1603.1,6.23776302]
[1744746469021,6.23674889,1603.4,1603.1,6.23776302]
[1744746469541,6.23674889,1603.4,1603.0,13.29201838]
[1744746469726,6.23674889,1603.4,1603.1,6.23790593]
[1744746470843,6.23815374,1603.1,1602.7,13.25305131]
[1744746471141,6.23813146,1603.1,1602.7,13.25297324]
[1744746471341,6.23813146,1603.1,1602.7,7.01362603]
[1744746471342,6.23832122,1603.0,1602.7,7.01362603]
[1744746471548,6.23832122,1603.0,1602.7,6.23932603]
[1744746471843,12.47681437,1603.0,1602.7,6.23932603]
[1744746472050,6.23832122,1603.0,1602.7,6.23932603]
[1744746472354,12.47686854,1603.0,1602.6,16.78341503]
[1744746472543,12.47686854,1603.0,1602.6,10.54356291]
[1744746472914,12.47686854,1603.0,1602.6,16.78341503]
[1744746473156,6.23832122,1603.0,1602.7,6.23942329]
[1744746473446,12.47607949,1603.1,1602.7,12.47875268]
[1744746473651,12.47607949,1603.1,1602.7,12.4786524]
[1744746473853,6.23800982,1603.1,1602.7,12.4786524]
[1744746474249,6.23800982,1603.1,1602.8,6.23905945]
[1744746474471,6.23800982,1603.1,1602.7,6.23932301]
[1744746474953,6.23831417,1603.0,1602.7,12.47865735]
[1744746475351,12.47678228,1603.0,1602.7,6.23932301]
[1744746475556,12.47678228,1603.0,1602.6,16.78326727]
[1744746475764,12.47678228,1603.0,1602.6,12.47955648]
[1744746475967,6.23831417,1603.0,1602.6,12.47955648]
[1744746476763,6.23831417,1603.0,1602.7,6.23945327]
[1744746477378,6.23831417,1603.0,1602.7,12.47881572]
[1744746477690,6.23831417,1603.0,1602.7,6.23934828]
[1744746477889,6.23831417,1603.0,1602.7,12.47871163]
[1744746478343,6.23831417,1603.0,1602.7,6.23934828]
[1744746478955,6.23831417,1603.0,1602.7,12.4786658]
[1744746479469,6.23831417,1603.0,1602.7,12.47866627]
[1744746480478,12.47613353,1603.1,1602.7,12.47866627]
[1744746481592,7.00232516,1603.4,1602.8,5.13250554]
[1744746481799,6.23765173,1603.2,1602.9,6.23857115]
[1744746481977,6.23765173,1603.2,1602.9,12.47712627]
[1744746482467,7.00222792,1603.4,1603.0,6.23830063]
[1744746483050,6.23729027,1603.3,1603.0,6.23830063]
[1744746483278,6.23729027,1603.3,1603.0,12.47645432]
[1744746483481,6.23729027,1603.3,1603.0,12.47633488]
[1744746483777,6.23647257,1603.5,1603.0,0.55]
[1744746483982,5.71,1603.6,1603.4,6.23661641]
[1744746484152,5.71,1603.6,1603.3,12.47403748]
[1744746484754,6.23573567,1603.7,1603.4,6.23671856]
[1744746484960,6.23617762,1603.6,1603.3,6.23703754]
[1744746485182,12.47253463,1603.6,1603.2,13.0248314]
[1744746485584,6.23640789,1603.5,1603.2,13.02483828]
[1744746485880,6.23566232,1603.7,1603.4,6.23660545]
[1744746486177,55.1804,1603.8,1603.3,6.23702042]
[1744746486562,6.23607571,1603.6,1603.3,12.47404258]
[1744746486756,6.23558022,1603.7,1603.3,6.23702042]
[1744746486970,6.23611559,1603.6,1603.3,6.23702042]
[1744746487162,6.2356508,1603.7,1603.3,6.23701138]
[1744746487364,55.1804,1603.8,1603.2,11.09116725]
[1744746487556,61.41565084,1603.8,1603.5,6.23598096]
[1744746487868,7.03201708,1604.0,1603.7,6.23546879]
[1744746488253,7.03201708,1604.0,1603.7,12.47093134]
[1744746488449,6.23441708,1604.0,1603.7,12.47093134]
[1744746488980,5.709,1604.1,1603.8,7.02483035]
[1744746489185,5.709,1604.1,1603.9,6.23473879]
[1744746489683,5.709,1604.1,1603.8,13.2598607]
[1744746489879,5.709,1604.1,1603.7,6.23550794]
[1744746490087,5.709,1604.1,1603.6,0.8054]
[1744746490260,6.23568957,1603.7,1603.4,7.04205715]
[1744746490449,6.23568957,1603.7,1603.4,13.2786696]
[1744746490850,6.23600439,1603.6,1603.4,0.8054]
[1744746491083,6.23600439,1603.6,1603.3,12.47406571]
[1744746491256,6.23568957,1603.7,1603.4,6.23670866]
[1744746491463,6.23568957,1603.7,1603.4,6.23662563]
[1744746491875,6.23568957,1603.7,1603.4,12.47325157]
[1744746492484,12.47062092,1603.8,1603.5,6.23629819]
[1744746493183,12.47067288,1603.8,1603.5,6.23629819]
[1744746494289,0.7663,1603.9,1603.4,0.55]
[1744746494457,12.71529258,1604.1,1603.8,6.23515353]
[1744746494662,18.94955343,1604.1,1603.8,6.2351845]
[1744746495185,12.46910431,1604.0,1603.7,6.23539274]
[1744746495386,6.23489609,1603.9,1603.6,7.03927254]
[1744746495560,6.23489609,1603.9,1603.6,13.27514508]
[1744746495969,6.23481947,1603.9,1603.6,7.03927254]
[1744746496172,6.23481947,1603.9,1603.6,13.2751375]
[1744746496365,6.23481947,1603.9,1603.6,7.03926496]
[1744746496773,6.23481947,1603.9,1603.6,13.27512161]
[1744746497709,6.23444069,1604.0,1603.7,12.4711397]
[1744746497856,6.23444069,1604.0,1603.7,6.23556985]
[1744746498403,6.23444069,1604.0,1603.6,7.03924365]
[1744746498697,6.23489941,1603.9,1603.6,13.27511047]
[1744746498878,6.23519142,1603.8,1603.4,0.7601]
[1744746499079,13.27989104,1603.4,1603.1,6.23783214]
[1744746499280,6.23715472,1603.3,1603.0,13.23652213]
[1744746499956,13.27989104,1603.4,1603.0,13.23652213]
[1744746500560,13.27989104,1603.4,1603.1,6.2379046]
[1744746500867,6.23597408,1603.6,1603.1,6.2379046]
[1744746500868,7.01923463,1603.6,1603.3,6.23687887]
[1744746501068,0.7831,1603.6,1603.2,6.23744733]
[1744746501393,6.23675006,1603.4,1603.1,6.23779277]
[1744746501591,6.23675006,1603.4,1603.0,6.99831693]
[1744746501771,6.23717682,1603.3,1603.0,6.99831693]
[1744746501968,12.47453542,1603.3,1603.0,6.99831693]
[1744746502163,6.23717682,1603.3,1603.0,13.2364926]
[1744746502364,6.23797671,1603.1,1602.8,6.23889853]
[1744746502564,12.47606504,1603.1,1602.8,6.23889853]
[1744746502964,6.23841017,1603.0,1602.7,7.04325865]
[1744746503166,12.47708262,1603.0,1602.6,12.47970888]
[1744746504517,6.2390816,1602.8,1602.3,0.761]
[1744746504693,6.24038404,1602.5,1602.2,6.24108036]
[1744746505199,6.24038404,1602.5,1602.2,12.48234503]
[1744746505397,0.7693,1602.6,1602.2,0.55]
[1744746505602,6.23963051,1602.7,1602.3,6.24072442]
[1744746506280,3.7534,1602.8,1602.3,6.24072442]
[1744746506486,9.99255261,1602.8,1602.2,6.24140754]
[1744746506683,6.24040289,1602.5,1602.2,6.24140754]
[1744746507288,12.47994243,1602.6,1602.2,12.4826844]
[1744746507685,6.23955118,1602.7,1602.4,6.24048459]
[1744746507885,12.47928871,1602.7,1602.4,6.24048459]
[1744746508072,6.23955118,1602.7,1602.4,6.24048459]
[1744746509098,11.94476041,1602.9,1602.6,6.23968903]
[1744746509281,18.18367662,1602.9,1602.6,6.23968903]
[1744746509600,11.94476041,1602.9,1602.6,6.23966085]
[1744746509799,11.94476041,1602.9,1602.6,12.47950707]
[1744746510304,18.18363255,1602.9,1602.6,6.23966085]
[1744746510672,11.94476041,1602.9,1602.6,6.23966085]
[1744746511407,11.94476041,1602.9,1602.6,12.47940274]
[1744746511708,11.94476041,1602.9,1602.6,6.23966085]
[1744746511885,11.94476041,1602.9,1602.6,12.47940361]
[1744746512074,5.706,1602.9,1602.7,6.23942848]
[1744746512273,11.94469578,1602.9,1602.6,6.23966085]
[1744746512599,0.7611,1603.0,1602.7,6.23943498]
[1744746512805,0.7611,1603.0,1602.8,6.23904281]
[1744746513506,6.23799617,1603.1,1602.8,12.47808562]
[1744746513903,12.69606064,1603.2,1602.9,6.23853287]
[1744746514207,18.93384351,1603.2,1602.9,6.23853287]
[1744746514607,6.4585,1603.2,1602.9,6.23853287]
[1744746514777,5.707,1603.2,1603.0,6.23820864]
[1744746515677,11.94452645,1603.2,1602.9,13.27990482]
[1744746515874,6.23798354,1603.1,1602.8,6.23895709]
[1744746516079,6.23848319,1603.0,1602.7,7.61669188]
[1744746516410,6.23848319,1603.0,1602.7,13.85606075]
[1744746517118,7.06421238,1603.1,1602.8,6.23890537]
[1744746517330,7.06421238,1603.1,1602.8,12.47786184]
[1744746517607,6.23837277,1603.0,1602.7,7.61663987]
[1744746517790,6.23837277,1603.0,1602.7,13.85601356]
[1744746518375,7.06415722,1603.1,1602.8,6.23896207]
[1744746518607,6.23839901,1603.0,1602.7,13.3059422]
[1744746518779,7.06422034,1603.1,1602.8,6.23888873]
[1744746519178,0.8262,1603.1,1602.9,6.23857974]
[1744746519608,7.06422451,1603.1,1602.8,6.23898006]
[1744746519789,0.8262,1603.1,1602.9,6.23844979]
[1744746519976,11.94464379,1603.2,1602.9,6.23844979]
[1744746520181,11.94464379,1603.2,1602.8,6.23902212]
[1744746520182,6.2380484,1603.1,1602.8,6.23902212]
[1744746520511,6.2380484,1603.1,1602.8,12.47794554]
[1744746520713,12.47609121,1603.1,1602.8,6.23896065]
[1744746520903,6.23804119,1603.1,1602.8,12.47792952]
[1744746521436,6.23804119,1603.1,1602.8,12.47793341]
[1744746523196,6.23804119,1603.1,1602.8,12.4779384]
[1744746523413,12.47615654,1603.1,1602.8,6.23896065]
[1744746523616,18.1823467,1603.2,1602.8,6.23896065]
[1744746523918,18.1823467,1603.2,1602.9,6.23858467]
[1744746524290,6.23792246,1603.1,1602.9,6.23858467]
[1744746524615,12.47601686,1603.1,1602.8,6.23898014]
[1744746525090,6.2383322,1603.0,1602.7,16.94778213]
[1744746525280,6.2383322,1603.0,1602.7,16.94778319]
[1744746525484,6.2387295,1602.9,1602.7,10.70855702]
[1744746525685,6.23907014,1602.9,1602.6,3.0]
[1744746525915,12.47814271,1602.9,1602.6,9.23983006]
[1744746526381,6.23907014,1602.9,1602.6,15.47957309]
[1744746526785,12.47775159,1602.9,1602.6,9.23974303]
[1744746527030,13.28088534,1603.0,1602.6,9.23974303]
[1744746527319,13.28088534,1603.0,1602.7,6.2394547]
[1744746527523,6.23870669,1602.9,1602.6,15.47949459]
[1744746528215,6.23870669,1602.9,1602.5,7.06867525]
[1744746528418,6.23870669,1602.9,1602.3,6.24096961]
[1744746528419,6.23989293,1602.6,1602.3,7.02284555]
[1744746528620,6.2406528,1602.4,1602.1,12.50340235]
[1744746528787,6.24049761,1602.5,1602.1,12.50340235]
[1744746529187,6.24097255,1602.4,1602.1,0.02]
[1744746529382,6.24097255,1602.4,1602.1,6.26178919]
[1744746529614,6.24097255,1602.4,1602.1,12.50339326]
[1744746530421,6.24097255,1602.4,1602.1,12.50339034]
[1744746532319,6.24097255,1602.4,1602.1,6.26169517]
[1744746532515,0.8036,1602.7,1602.2,6.24127622]
[1744746532710,6.24003682,1602.6,1602.3,6.24099335]
[1744746532913,6.24027194,1602.5,1602.2,9.88306827]
[1744746533427,12.48077304,1602.5,1602.2,9.88306827]
[1744746534091,12.48077304,1602.5,1602.2,3.64179205]
[1744746534716,6.24064278,1602.4,1602.2,3.64179205]
[1744746535096,6.24112883,1602.3,1602.1,0.02]
[1744746535295,6.24141805,1602.2,1602.1,0.02]
[1744746535496,12.48254225,1602.3,1602.1,0.02]
[1744746535696,12.48235897,1602.3,1602.1,0.02]
[1744746535931,6.24141805,1602.2,1602.1,0.02]
[1744746536498,12.48233232,1602.3,1602.1,0.02]
[1744746537051,6.24112883,1602.3,1602.1,0.02]
[1744746537325,12.48249775,1602.3,1602.1,0.02]
[1744746537530,12.4823446,1602.3,1602.1,0.02]
[1744746537832,6.24117518,1602.3,1602.1,0.02]
[1744746538125,12.4823908,1602.3,1602.1,0.02]
[1744746538532,6.24117518,1602.3,1602.1,0.02]
[1744746538742,0.8042,1602.6,1602.2,6.24141805]
[1744746539024,6.24081501,1602.4,1602.1,16.93274192]
[1744746539400,6.24081501,1602.4,1602.1,10.69104962]
[1744746539730,12.48160038,1602.4,1602.1,10.69104962]
[1744746539941,12.48088417,1602.5,1602.1,10.69104962]
[1744746540103,12.48088417,1602.5,1602.1,7.04925757]
[1744746540308,6.24078334,1602.4,1602.1,7.04925757]
[1744746540637,6.23964658,1602.7,1602.4,6.24061608]
[1744746540844,6.23964658,1602.7,1602.3,9.88279421]
[1744746541032,6.23986287,1602.6,1602.3,16.12371052]
[1744746541233,6.23964658,1602.7,1602.4,7.02012662]
[1744746541434,10.62469055,1603.2,1602.7,0.7795]
[1744746541611,4.91869055,1603.2,1603.0,6.23804236]
[1744746541811,4.14759055,1603.2,1603.0,7.01754236]
[1744746542340,10.38524526,1603.2,1603.0,0.7795]
[1744746542512,4.14759055,1603.2,1602.9,9.88048097]
[1744746542842,4.14759055,1603.2,1603.1,6.23791404]
[1744746543333,10.38536578,1603.2,1602.8,16.87239166]
[1744746543542,10.38536578,1603.2,1602.8,16.87232615]
[1744746543705,10.38536578,1603.2,1602.8,10.63336368]
[1744746543909,6.23798642,1603.1,1602.8,4.39459205]
[1744746544118,7.03869631,1603.1,1602.8,4.39459205]
[1744746544419,6.23798642,1603.1,1602.8,4.39459205]
[1744746544811,10.38519902,1603.2,1602.8,10.63350219]
[1744746545019,12.47535742,1603.2,1602.8,10.63350219]
[1744746545220,12.47535742,1603.2,1602.8,6.99171014]
[1744746545426,6.23803122,1603.1,1602.8,6.99171014]
[1744746546015,12.47522547,1603.2,1602.8,13.23064382]
[1744746546214,12.47525207,1603.2,1602.8,13.23064382]
[1744746546422,12.47525207,1603.2,1602.8,13.23066769]
[1744746546746,6.23792793,1603.1,1602.8,6.99171014]
[1744746547359,6.23792793,1603.1,1602.8,13.23063299]
[1744746547529,12.4752567,1603.2,1602.8,13.23063299]
[1744746547724,12.47529345,1603.2,1602.8,13.23063299]
[1744746547933,6.23758873,1603.2,1602.8,13.23063299]
[1744746548158,6.23758873,1603.2,1602.9,6.23851606]
[1744746548754,12.47528281,1603.2,1602.9,6.23851606]
[1744746548960,7.00797963,1603.4,1602.9,0.55]
[1744746549160,12.47399566,1603.4,1603.0,7.01467145]
[1744746549339,12.47399566,1603.4,1603.0,13.25283569]
[1744746549534,6.23726171,1603.3,1603.0,7.01467145]
[1744746549751,6.2381314,1603.1,1602.8,0.7766]
[1744746549954,6.23841356,1603.0,1602.6,16.27160154]
[1744746550151,6.23869237,1602.9,1602.6,16.27160154]
[1744746550348,6.23841356,1603.0,1602.7,6.23941351]
[1744746550665,12.47606697,1603.1,1602.7,12.4787564]
[1744746550823,6.23755665,1603.2,1602.7,11.09175729]
[1744746551025,6.23761049,1603.2,1602.9,6.99540158]
[1744746551276,6.23761049,1603.2,1602.9,0.7568]
[1744746551450,6.23761049,1603.2,1602.9,6.99544386]
[1744746551635,7.02802777,1603.1,1602.5,6.9968704]
[1744746551967,6.23909856,1602.8,1602.5,13.23701012]
[1744746552332,6.23870559,1602.9,1602.6,6.23973583]
[1744746552531,6.23870559,1602.9,1602.6,12.47945866]
[1744746552734,7.02809091,1603.1,1602.8,7.03960688]
[1744746552928,13.16074669,1603.3,1602.9,6.23831763]
[1744746553236,6.23720368,1603.3,1603.0,6.23817005]
[1744746553430,12.47451227,1603.3,1603.0,6.23817005]
[1744746553631,6.23753744,1603.2,1602.9,6.23859288]
[1744746553854,12.47470403,1603.3,1603.0,6.23827001]
[1744746554129,6.23720368,1603.3,1603.0,12.47644921]
[1744746554772,6.23720368,1603.3,1603.0,6.2381792]
[1744746555181,6.23720368,1603.3,1603.0,12.47636552]
[1744746555474,6.23720368,1603.3,1603.0,6.2381792]
[1744746555670,6.23682191,1603.4,1603.0,6.2381792]
[1744746555863,6.23724721,1603.3,1603.0,12.47637214]
[1744746556172,6.23682191,1603.4,1603.1,6.23779086]
[1744746556345,12.47387512,1603.4,1603.1,7.06439086]
[1744746556545,6.23682191,1603.4,1603.1,7.06439086]
[1744746556970,6.4995,1603.5,1603.1,0.8266]
[1744746556971,6.23729267,1603.3,1603.1,0.8266]
[1744746557277,6.23729267,1603.3,1603.0,7.06237782]
[1744746557772,6.23794925,1603.1,1602.9,1.3374]
[1744746557973,6.23872597,1602.9,1602.7,0.7874]
[1744746558272,12.47772791,1602.9,1602.6,6.23970666]
[1744746558576,6.23841365,1603.0,1602.5,3.7874]
[1744746558741,12.47684686,1603.0,1602.7,6.23927554]
[1744746559540,6.23871878,1602.9,1602.6,6.78974454]
[1744746559744,6.23928601,1602.8,1602.5,10.0275399]
[1744746559945,6.23922642,1602.8,1602.5,10.0275399]
[1744746560147,6.23922642,1602.8,1602.5,7.0275399]
[1744746560478,12.47764564,1602.9,1602.6,6.23981689]
[1744746561384,6.2390845,1602.8,1602.5,7.0275399]
[1744746561683,6.24041029,1602.5,1602.3,0.7926]
[1744746561876,6.24069812,1602.4,1602.1,7.05431945]
[1744746562280,6.24069812,1602.4,1602.1,7.05426591]
[1744746562668,6.24069812,1602.4,1602.1,13.2959555]
[1744746562986,12.48152225,1602.4,1602.1,7.05426591]
[1744746563489,6.2413343,1602.3,1602.1,0.02]
[1744746563676,7.03201805,1602.2,1602.1,0.02]
[1744746564856,5.701,1602.3,1602.1,0.02]
[1744746565184,7.02559088,1602.4,1602.1,0.02]
[1744746565185,6.24091521,1602.4,1602.1,3.66474016]
[1744746565483,6.24104587,1602.3,1602.1,0.02]
[1744746565852,6.24083127,1602.4,1602.1,0.02]
[1744746565853,6.24083127,1602.4,1602.1,6.26174574]
[1744746567260,6.24029476,1602.5,1602.2,6.24128833]
[1744746567589,12.48072742,1602.5,1602.1,14.19640898]
[1744746567789,6.24069962,1602.4,1602.1,14.19640682]
[1744746568085,6.24069962,1602.4,1602.1,7.95471597]
[1744746568282,6.24069962,1602.4,1602.1,7.95471096]
[1744746568484,6.24069962,1602.4,1602.1,7.95469636]
[1744746568791,12.72668799,1602.6,1602.1,1.71302728]
[1744746568966,6.24117188,1602.3,1602.1,0.02]
[1744746569155,12.48252466,1602.3,1602.1,0.02]
[1744746570054,6.24117188,1602.3,1602.1,0.02]
[1744746570257,6.24141805,1602.2,1602.1,0.02]
[1744746571955,0.7755,1602.3,1602.1,6.26142203]
[1744746572150,9.23952639,1602.7,1602.1,6.26142203]
[1744746572151,6.23960277,1602.7,1602.2,3.64474016]
[1744746572356,6.2399701,1602.6,1602.3,6.2409273]
[1744746572988,12.4799851,1602.6,1602.3,6.2409273]
[1744746574087,6.2399701,1602.6,1602.3,6.24091473]
[1744746574459,6.2399701,1602.6,1602.3,12.48183646]
[1744746574661,7.014734,1602.8,1602.5,6.24015166]
[1744746574967,7.014734,1602.8,1602.4,0.8207]
[1744746575177,6.23959771,1602.7,1602.4,7.06121755]
[1744746575557,6.23959771,1602.7,1602.4,13.3017351]
[1744746575901,6.23959771,1602.7,1602.4,13.30175224]
[1744746576191,6.23959771,1602.7,1602.4,14.79319323]
[1744746576487,6.23959771,1602.7,1602.4,12.1973987]
[1744746576854,5.703,1602.9,1602.6,6.2397313]
[1744746577056,18.18070657,1602.9,1602.6,6.2397313]
[1744746577257,18.18066082,1602.9,1602.6,6.2397313]
[1744746577477,11.94180439,1602.9,1602.6,12.47947898]
[1744746577678,12.47614372,1603.1,1602.7,0.7992]
[1744746577865,6.23832522,1603.0,1602.7,7.03851501]
[1744746578083,6.23832522,1603.0,1602.7,13.27786811]
[1744746578300,6.23802351,1603.1,1602.8,16.12257789]
[1744746578578,12.47458311,1603.3,1603.0,6.23827606]
[1744746578783,12.47535667,1603.2,1602.9,6.23854031]
[1744746578973,6.23767755,1603.2,1602.9,6.23854031]
[1744746579173,12.47535107,1603.2,1602.9,6.23854031]
[1744746579372,12.47538049,1603.2,1602.9,6.23854031]
[1744746579581,6.23767352,1603.2,1602.9,6.23854031]
[1744746579984,12.47453936,1603.3,1603.0,6.23829144]
[1744746580189,12.47453936,1603.3,1603.0,0.8182]
[1744746580589,10.38440093,1603.4,1603.1,6.78774398]
[1744746581201,16.62137076,1603.4,1603.1,6.78774398]
[1744746581704,12.47378021,1603.4,1603.1,6.78774398]
[1744746582599,6.23745593,1603.3,1603.0,4.46294016]
[1744746582798,6.23729265,1603.3,1603.0,10.7012282]
[1744746583509,12.4746553,1603.3,1603.0,10.70113859]
[1744746583880,6.23754583,1603.2,1603.0,4.46294016]
[1744746584387,12.47538781,1603.2,1603.0,4.46294016]
[1744746584592,6.23754583,1603.2,1603.0,4.46294016]
[1744746585424,12.47537717,1603.2,1603.0,3.64474016]
[1744746585591,12.47534065,1603.2,1603.0,3.64474016]
[1744746585795,6.23754583,1603.2,1603.0,3.64474016]
[1744746586097,12.47530313,1603.2,1603.0,3.64474016]
[1744746586515,6.23754583,1603.2,1603.0,3.64474016]
[1744746586690,7.02050579,1603.4,1602.8,0.7723]
[1744746586895,0.8049,1603.1,1602.8,6.23889265]
[1744746587227,6.23899293,1602.9,1602.6,0.7685]
[1744746587406,6.23899293,1602.9,1602.6,3.7685]
[1744746587586,12.47798586,1602.9,1602.6,10.00832411]
[1744746588522,6.23899293,1602.9,1602.6,18.29231027]
[1744746589291,6.23899293,1602.9,1602.6,18.29231686]
[1744746589793,6.23836296,1603.0,1602.7,9.88403097]
[1744746589993,12.47690954,1603.0,1602.7,9.88403097]
[1744746590211,6.23836296,1603.0,1602.7,9.88403097]
[1744746590411,6.23836296,1603.0,1602.7,17.38610542]
[1744746590592,6.23836296,1603.0,1602.7,11.1467444]
[1744746590938,12.47701676,1603.0,1602.7,3.64474016]
[1744746591125,6.23902309,1602.9,1602.7,3.64474016]
[1744746591329,6.23890096,1602.9,1602.7,3.64474016]
[1744746591704,12.47783565,1602.9,1602.7,3.64474016]
[1744746592119,6.23886949,1602.9,1602.7,3.64474016]
[1744746592590,6.23841055,1603.0,1602.7,9.88393431]
[1744746593023,6.23841055,1603.0,1602.7,16.12330152]
[1744746593197,6.23841055,1603.0,1602.7,9.88393431]
[1744746593396,6.23841055,1603.0,1602.7,16.1232821]
[1744746593702,6.23770427,1603.2,1602.9,6.2386057]
[1744746593891,6.23770427,1603.2,1602.7,5.63391837]
[1744746593892,6.23791962,1603.1,1602.8,6.23888722]
[1744746594299,6.23791962,1603.1,1602.8,12.47785572]
[1744746594499,7.02277043,1603.3,1602.9,4.43114016]
[1744746594717,6.23756529,1603.2,1602.9,10.66972371]
[1744746594895,12.47522905,1603.2,1602.9,10.66972371]
[1744746595291,0.80070989,1603.2,1602.7,8.22855155]
[1744746595496,6.23752495,1603.2,1602.6,19.92060602]
[1744746595829,6.23872072,1602.9,1602.6,19.9205775]
[1744746595995,6.23872072,1602.9,1602.6,13.68079457]
[1744746596195,6.23872072,1602.9,1602.6,19.9205318]
[1744746596407,6.23872072,1602.9,1602.6,13.68077739]
[1744746596602,6.23843453,1603.0,1602.6,8.8641179]
[1744746596900,12.47606159,1603.1,1602.8,6.23897317]
[1744746597413,12.47606159,1603.1,1602.8,16.12267469]
[1744746597414,6.23795822,1603.1,1602.8,16.12267469]
[1744746597623,13.26325774,1603.2,1602.9,7.06310637]
[1744746597793,13.26326218,1603.2,1602.9,7.06310637]
[1744746597997,12.47536218,1603.2,1602.9,7.06310637]
[1744746598441,6.23762808,1603.2,1602.9,13.30169052]
[1744746598601,12.47534515,1603.2,1602.9,7.06310637]
[1744746598929,12.47614715,1603.1,1602.9,0.8247]
[1744746599124,6.23830318,1603.0,1602.8,3.64474016]
[1744746599532,12.47613872,1603.1,1602.8,9.8837719]
[1744746599835,6.23760722,1603.2,1602.8,3.64474016]
[1744746600037,6.23760722,1603.2,1602.9,6.23847295]
[1744746600244,6.23760722,1603.2,1602.8,3.64474016]
[1744746600245,0.8232,1603.2,1602.5,0.8166]
[1744746600444,4.14759055,1603.9,1603.5,0.8166]
[1744746600736,5.39186771,1604.4,1603.8,3.0]
[1744746600937,6.23359854,1604.3,1603.9,0.55]
[1744746601138,6.23335046,1604.3,1603.9,0.55]
[1744746601340,6.23539141,1603.8,1603.3,9.88174845]
[1744746601540,6.23597654,1603.6,1603.4,0.55]
[1744746601741,6.23596906,1603.6,1603.0,0.7878]
[1744746601913,9.5193,1603.8,1603.0,0.7878]
[1744746601914,6.23637605,1603.5,1603.0,0.7878]
[1744746602244,6.23637605,1603.5,1602.6,22.06791888]
[1744746602245,0.7991,1603.3,1602.6,1.11243703]
[1744746602549,12.47632209,1603.1,1602.6,7.35191441]
[1744746602707,12.47632209,1603.1,1602.7,0.34894873]
[1744746602911,0.819,1603.0,1602.7,0.34894873]
[1744746603114,0.819,1603.0,1602.1,0.02]
[1744746603115,6.24067142,1602.4,1602.1,0.02]
[1744746603321,0.819,1602.7,1602.3,3.64474016]
[1744746603641,6.23879769,1602.9,1602.5,9.88478863]
[1744746603843,0.8262,1603.0,1602.7,3.64474016]
[1744746604050,6.23906197,1602.9,1602.5,9.88497206]
[1744746604232,6.23906197,1602.9,1602.5,3.64474016]
[1744746604431,11.935922,1603.1,1602.7,3.64474016]
[1744746604643,6.23851596,1603.0,1602.7,3.64474016]
[1744746604955,6.2390816,1602.8,1602.7,3.64474016]
[1744746605118,6.2390816,1602.8,1602.5,3.64474016]
[1744746605454,11.93591538,1603.1,1602.7,9.88416843]
[1744746605768,11.93591538,1603.1,1602.6,6.2395912]
[1744746605769,6.23715953,1603.3,1602.9,3.64474016]
[1744746605963,6.23848072,1603.0,1602.6,3.0]
[1744746606249,6.23848072,1603.0,1602.7,3.64474016]
[1744746606649,5.698,1603.4,1602.7,9.88420195]
[1744746606650,6.23753774,1603.2,1602.7,9.88420195]
[1744746606851,12.47531197,1603.2,1602.8,6.23901588]
[1744746607148,6.23852202,1603.0,1602.6,13.54299538]
[1744746607355,6.23852202,1603.0,1602.6,12.56857075]
[1744746607562,6.2371359,1603.3,1602.6,12.56857075]
[1744746607563,6.2371359,1603.3,1602.6,4.30315682]
[1744746607856,6.23898832,1602.9,1602.6,4.30315682]
[1744746608067,6.23921157,1602.8,1602.4,14.36678626]
[1744746608267,6.23909429,1602.8,1602.4,5.12615682]
[1744746608430,5.699,1603.0,1602.6,4.30315682]
[1744746608625,6.23797245,1603.1,1602.7,0.43031568]
[1744746608825,6.23797245,1603.1,1602.7,12.47865349]
[1744746609025,6.23758604,1603.2,1602.8,16.78094036]
[1744746609258,12.47547851,1603.2,1602.8,10.54199996]
[1744746609551,6.23758604,1603.2,1602.8,16.78094036]
[1744746609785,6.2382839,1603.1,1602.8,4.30315682]
[1744746609943,6.23837787,1603.0,1602.7,6.23946395]